fUST/lending_fUST_20250913
["ID","MTS","AMOUNT","RATE_DAILY","PERIOD"]
[385278742,1757734247835,-161.11240797,0.00028881,2]
[385278744,1757734247844,-800.0,0.00028882,2]
[385278746,1757734247854,-2581.89830366,0.00028891,2]
[385278749,1757734247864,-500.0,0.00028892,2]
[385278750,1757734247873,-500.0,0.00028899,2]
[385278752,1757734247884,-7349.97958161,0.000289,2]
[385278754,1757734247893,-2581.89830366,0.00028905,2]
[385278756,1757734247902,-800.0,0.00028907,2]
[385278758,1757734247911,-729.38528535,0.00028908,2]
[385278760,1757734247920,-500.0,0.00028911,2]
[385278762,1757734247930,-2581.89830366,0.00028919,2]
[385278765,1757734247939,-507.7999097,0.00028927,2]
[385278766,1757734247948,-2581.89830366,0.00028934,2]
[385278769,1757734247957,-800.0,0.00028937,2]
[385278770,1757734247966,-800.0,0.00028943,2]
[385278772,1757734247978,-2581.89830366,0.00028948,2]
[385278774,1757734247987,-800.0,0.00028951,2]
[385278776,1757734247996,-800.0,0.00028957,2]
[385278779,1757734248005,-800.0,0.00028961,2]
[385278780,1757734248015,-497.91355135,0.00028962,2]
[385278782,1757734248024,-13300.4518986,0.00028964,2]
[385278784,1757734248034,-800.0,0.0002897,2]
[385278786,1757734248044,-14872.98221113,0.00028974,5]
[385278789,1757734248056,-800.0,0.00028978,2]
[385278791,1757734248066,-1111.28411004,0.00028979,19]
[385278793,1757734248076,-160.0,0.00028991,7]
[385278795,1757734248086,-2608.13010563,0.00028991,2]
[385278796,1757734248095,-1358.4785954,0.00028991,2]
[385278798,1757734248104,-3209.80477817,0.00028991,2]
[385278801,1757734248114,-800.0,0.00028994,2]
[385278803,1757734248123,-800.0,0.00028997,2]
[385278805,1757734248133,-2000.0,0.00029,60]
[385278807,1757734248142,-753.46206915,0.00029,30]
[385278809,1757734248152,-877.34064837,0.00029,2]
[385278811,1757734248161,-160.0,0.00029,10]
[385278813,1757734248171,-160.0,0.00029,10]
[385278814,1757734248180,-209.0,0.00029,2]
[385278816,1757734248189,-351.10368381,0.00029009,7]
[385278818,1757734248199,-2700.0,0.0002901,7]
[385278820,1757734248209,-169.749669,0.00029016,15]
[385278822,1757734248218,-155.96508,0.00029016,15]
[385278824,1757734248228,-500.0,0.00029016,11]
[385278826,1757734248238,-500.0,0.00029016,11]
[385278828,1757734248247,-800.0,0.00029018,2]
[385278830,1757734248257,-800.0,0.00029018,2]
[385278832,1757734248267,-160.0,0.00029026,10]
[385278834,1757734248276,-160.9255242,0.00029026,5]
[385278836,1757734248286,-208.0,0.0002903,30]
[385278838,1757734248295,-155.96508,0.00029031,20]
[385278840,1757734248304,-303.08663164,0.00029033,2]
[385278842,1757734248314,-151.0,0.00029035,7]
[385278844,1757734248323,-155.96508,0.00029036,20]
[385278846,1757734248333,-5000.0,0.00029038,3]
[385278848,1757734248342,-406.0,0.00029041,60]
[385278850,1757734248351,-5000.35,0.00029042,60]
[385278852,1757734248361,-500.0,0.00029056,5]
[385278854,1757734248370,-500.0,0.00029062,2]
[385278856,1757734248379,-500.0,0.00029073,5]
[385278858,1757734248389,-500.0,0.00029083,2]
[385278860,1757734248398,-186.0,0.00029091,2]
[385278862,1757734248409,-811885.19750686,0.00029091,20]
[385280229,1757734445874,2000.0,0.00027349,120]
[385280230,1757734446653,2000.0,0.00027349,120]
[385280231,1757734446945,2000.0,0.00027349,120]
[385280232,1757734447237,2000.0,0.00027349,120]
[385280233,1757734447549,2000.0,0.00027349,120]
[385280234,1757734448095,2000.0,0.00027349,120]
[385280235,1757734448386,2000.0,0.00027349,120]
[385280236,1757734448666,2000.0,0.00027349,120]
[385280237,1757734448938,2000.0,0.00027349,120]
[385280238,1757734449233,2000.0,0.00027349,120]
[385280239,1757734449525,2000.0,0.00027349,120]
[385280240,1757734449819,2000.0,0.00027349,120]
[385280241,1757734450228,2000.0,0.00027349,120]
[385280242,1757734450393,1611.487,0.00027349,120]
[385280245,1757735154365,3009.983,0.00024,30]
[385280262,1757735431950,-625.95577615,0.00018925,2]
[385280543,1757735437652,-1720.71130094,0.00018925,2]
[385280544,1757735437665,-393.04281597,0.00018925,2]
[385280545,1757735437677,-2260.29010694,0.00018925,2]
[385280546,1757735437687,-274.76084347,0.000199,2]
[385280547,1757735437696,-390.0,0.00019929,20]
[385280548,1757735437709,-274.76084343,0.00021149,2]
[385280549,1757735437719,-847.12775373,0.00021607,2]
[385280550,1757735437730,-3969.80636367,0.00022212,2]
[385280551,1757735437744,-274.76084343,0.00022398,2]
[385280552,1757735437754,-300.0,0.00022655,20]
[385280553,1757735437764,-300.0,0.00022655,20]
[385280554,1757735437774,-300.0,0.00022655,20]
[385280555,1757735437785,-300.0,0.00022655,20]
[385280556,1757735437795,-202.29823428,0.00022655,20]
[385280557,1757735437809,-97.70176572,0.00022655,20]
[385280558,1757735437819,-300.0,0.00022655,20]
[385280559,1757735437828,-300.0,0.00022655,20]
[385280560,1757735437838,-221.6615246,0.00022655,20]
[385280579,1757735443096,-78.3384754,0.00022655,20]
[385280580,1757735443107,-300.0,0.00022655,20]
[385280581,1757735443117,-300.0,0.00022655,20]
[385280582,1757735443126,-300.0,0.00022655,20]
[385280583,1757735443136,-300.0,0.00022655,20]
[385280584,1757735443159,-300.0,0.00022655,20]
[385280585,1757735443175,-300.0,0.00022655,20]
[385280587,1757735443194,-300.0,0.00022655,20]
[385280591,1757735443212,-5000.0,0.00023411,2]
[385280592,1757735443232,-274.76084343,0.00023647,2]
[385280593,1757735443247,-160.0,0.00024844,2]
[385280594,1757735443265,-160.0,0.00024844,2]
[385280595,1757735443283,-274.76084343,0.00024896,2]
[385280596,1757735443297,-480.0,0.00024931,10]
[385280597,1757735443315,-3582.7886851,0.00025957,2]
[385280598,1757735443333,-274.76084343,0.00026145,4]
[385280599,1757735443350,-161.0,0.000265,10]
[385280600,1757735443369,-1442.39693394,0.0002705,2]
[385280601,1757735443384,-274.76084343,0.00027394,7]
[385280602,1757735443402,-163.203261,0.00027397,2]
[385280603,1757735443417,-332.83396982,0.00027747,2]
[385280604,1757735443433,-453.5510655,0.00028218,2]
[385280605,1757735443447,-774.37912816,0.00028262,2]
[385280606,1757735443460,-168.0,0.00028382,2]
[385280607,1757735443476,-266.451,0.00028555,20]
[385280608,1757735443492,-274.76084343,0.00028643,10]
[385280609,1757735443507,-600.0,0.00028782,20]
[385280610,1757735443523,-156.13025445,0.0002899,2]
[385280611,1757735443537,-156.13025443,0.00028992,2]
[385280612,1757735443551,-156.13025443,0.00028993,2]
[385280613,1757735443565,-7745.69491098,0.00028995,2]
[385280614,1757735443579,-156.13025443,0.00028995,2]
[385280615,1757735443593,-162.01458046,0.00029,60]
[385280616,1757735443609,-2000.0,0.00029,2]
[385280617,1757735443625,-151.141455,0.00029016,14]
[385280618,1757735443639,-483.96247478,0.0002902,15]
[385280619,1757735443653,-500.0,0.00029036,11]
[385280620,1757735443667,-500.0,0.00029036,11]
[385280621,1757735443684,-17161.5302677,0.00029082,2]
[385280622,1757735443705,-6120.150491,0.00029082,2]
[385280623,1757735443719,-3373.6037986,0.00029082,2]
[385280624,1757735443735,-540.84,0.00029089,2]
[385280625,1757735443752,-2596.71,0.00029089,2]
[385280626,1757735443767,-2596.71,0.00029089,2]
[385280627,1757735443784,-2596.71,0.00029089,2]
[385280628,1757735443798,-2596.71,0.00029089,2]
[385280629,1757735443814,-2596.71,0.00029089,2]
[385280630,1757735443831,-2596.71,0.00029089,2]
[385280631,1757735443846,-1385.87708847,0.00029089,2]
[385280693,1757735446416,-1210.83291153,0.00029089,2]
[385280695,1757735446426,-289.16708847,0.00029089,2]
[385280708,1757735446561,-2307.54291153,0.00029089,2]
[385280710,1757735446571,-2596.71,0.00029089,2]
[385280712,1757735446581,-2596.71,0.00029089,2]
[385280714,1757735446592,-155.32201365,0.00029089,2]
[385280716,1757735446603,-200.36634721,0.0002909,10]
[385280718,1757735446612,-655.0,0.0002909,120]
[385280720,1757735446623,-136064.75816618,0.0002909,2]
[385280857,1757736637874,-4359.00647253,0.0001902,2]
[385280877,1757736639925,-640.99352747,0.0001902,2]
[385280878,1757736639935,-501.33011201,0.000191,2]
[385280879,1757736639945,-351.05983226,0.000199,2]
[385280880,1757736639954,-351.05983218,0.00021149,2]
[385280881,1757736639963,-719.66029809,0.00021694,2]
[385280882,1757736639972,-160.0,0.00021729,2]
[385280883,1757736639981,-160.0,0.00021729,2]
[385280884,1757736639990,-351.05983218,0.00022398,2]
[385280885,1757736639999,-1200.0,0.00023589,2]
[385280886,1757736640008,-173.517561,0.0002359,2]
[385280887,1757736640017,-680.0,0.00023638,2]
[385280888,1757736640026,-351.05983218,0.00023647,2]
[385280889,1757736640036,-361.90710894,0.0002447,2]
[385280890,1757736640047,-165.89529345,0.00024733,2]
[385280891,1757736640055,-160.0,0.00024733,2]
[385280892,1757736640065,-679.0,0.00024775,2]
[385280893,1757736640073,-847.12775373,0.00024862,2]
[385280894,1757736640082,-300.0,0.00024866,2]
[385280895,1757736640093,-160.0,0.00024872,2]
[385280896,1757736640103,-351.05983218,0.00024896,2]
[385280897,1757736640112,-1459.3986315,0.00025282,2]
[385280898,1757736640123,-500.60684694,0.00025375,2]
[385280899,1757736640131,-399.06030152,0.00025375,2]
[385280900,1757736640140,-501.19093797,0.00025375,2]
[385280901,1757736640149,-300.0,0.00025451,20]
[385280902,1757736640158,-300.0,0.00025451,20]
[385280903,1757736640168,-300.0,0.00025451,20]
[385280904,1757736640177,-300.0,0.00025451,20]
[385280905,1757736640187,-300.0,0.00025451,20]
[385280906,1757736640196,-300.0,0.00025451,20]
[385280907,1757736640205,-300.0,0.00025451,20]
[385280908,1757736640215,-300.0,0.00025451,20]
[385280909,1757736640224,-300.0,0.00025451,20]
[385280910,1757736640234,-300.0,0.00025451,20]
[385280911,1757736640243,-300.0,0.00025451,20]
[385280912,1757736640252,-300.0,0.00025451,20]
[385280913,1757736640262,-300.0,0.00025451,20]
[385280914,1757736640271,-300.0,0.00025451,20]
[385280915,1757736640280,-300.0,0.00025451,20]
[385280916,1757736640290,-502.9832506,0.0002548,2]
[385280917,1757736640301,-505.83337194,0.00025483,2]
[385280918,1757736640311,-500.0,0.00025483,2]
[385280919,1757736640320,-500.0,0.00025483,2]
[385280920,1757736640329,-500.0,0.00025483,2]
[385280921,1757736640339,-500.0,0.00025483,2]
[385280922,1757736640349,-500.0,0.00025486,2]
[385280923,1757736640359,-501.85754419,0.00025486,2]
[385280924,1757736640368,-278.38556022,0.00025486,2]
[385280925,1757736640377,-500.0,0.00025486,2]
[385280926,1757736640387,-500.0,0.00025486,2]
[385280927,1757736640396,-500.68336937,0.00025486,2]
[385280928,1757736640405,-501.19372336,0.00025486,2]
[385280929,1757736640414,-500.95355714,0.00025488,2]
[385280930,1757736640424,-500.0,0.00025488,2]
[385280931,1757736640435,-500.0,0.00025571,2]
[385280932,1757736640445,-502.35152145,0.00025571,2]
[385280933,1757736640455,-501.65921064,0.00025571,2]
[385280934,1757736640464,-500.0,0.00025571,2]
[385280935,1757736640473,-504.9479813,0.00025571,2]
[385280936,1757736640482,-500.46864765,0.00025571,2]
[385280937,1757736640492,-500.73411036,0.00025571,2]
[385280938,1757736640501,-502.74420862,0.00025667,2]
[385280939,1757736640510,-600.0,0.00025959,20]
[385280940,1757736640519,-1008.32253063,0.00026031,2]
[385280941,1757736640528,-1001.18542489,0.00026031,2]
[385280942,1757736640537,-1003.07309852,0.00026031,2]
[385280943,1757736640546,-502.60244952,0.00026031,2]
[385280944,1757736640556,-503.85397359,0.00026034,2]
[385280945,1757736640565,-1001.16343409,0.00026034,2]
[385280946,1757736640575,-746.99767804,0.00026035,2]
[385280947,1757736640584,-213.16,0.000261,12]
[385280948,1757736640594,-1004.29080461,0.00026119,2]
[385280949,1757736640603,-1001.56668175,0.00026119,2]
[385280950,1757736640613,-351.05983218,0.00026145,4]
[385280951,1757736640622,-823.06228575,0.00026182,2]
[385280952,1757736640632,-189.0,0.00026942,2]
[385280953,1757736640641,-351.05983218,0.00027394,7]
[385280954,1757736640651,-163.203261,0.00027397,2]
[385280955,1757736640660,-307.76805929,0.00028,7]
[385280956,1757736640670,-302.367377,0.00028218,2]
[385280957,1757736640679,-168.0,0.00028359,2]
[385280958,1757736640689,-168.0,0.00028428,2]
[385280959,1757736640699,-720.0,0.00028555,20]
[385280960,1757736640708,-351.05983218,0.00028643,10]
[385280961,1757736640718,-168.0,0.00028782,2]
[385280962,1757736640728,-1315.897395,0.00028842,2]
[385280963,1757736640738,-3679.4829803,0.00028842,2]
[385280964,1757736640747,-1670.2945102,0.00028842,2]
[385280965,1757736640757,-500.0,0.00028979,2]
[385280966,1757736640766,-102859.91230129,0.0002898,2]
[385280988,1757736646088,-5000.0,0.0001883,2]
[385280989,1757736646098,-409.0,0.00026344,2]
[385280990,1757736646107,-162.5216739,0.0002898,2]
[385280991,1757736646121,-1018.9669137,0.0002898,2]
[385281003,1757737721707,150.99999923,0.00029114,120]
[385281019,1757737832136,-1047.42790327,0.00019504,2]
[385281020,1757737832147,-774.39209301,0.00019504,2]
[385281021,1757737832159,-363.91319129,0.00019504,2]
[385281036,1757737837938,-2814.26681243,0.00019504,2]
[385281037,1757737837947,-223.18496142,0.000198,2]
[385281038,1757737837957,-34.8356181,0.000199,2]
[385281039,1757737837993,-332.7322979,0.000199,2]
[385281040,1757737838003,-204.37443382,0.00021,2]
[385281041,1757737838012,-367.56791596,0.00021149,2]
[385281042,1757737838021,-223.18496141,0.00021628,2]
[385281043,1757737838030,-310.16820964,0.000218,2]
[385281044,1757737838040,-1200.0,0.00021871,2]
[385281045,1757737838050,-300.0,0.00021871,2]
[385281046,1757737838059,-3664.28597485,0.00021872,2]
[385281047,1757737838070,-580.38737067,0.00021872,2]
[385281048,1757737838081,-920.0,0.00021872,2]
[385281049,1757737838092,-3368.60463169,0.00021872,2]
[385281083,1757737840183,-20601.69365,0.00021872,2]
[385281087,1757737840205,-8003.12059975,0.00021872,2]
[385281089,1757737840221,-217.73838971,0.00021872,2]
[385281092,1757737840238,-160.0,0.00021872,2]
[385281095,1757737840258,-233.1568031,0.00021872,2]
[385281098,1757737840276,-160.0,0.00021872,2]
[385281101,1757737840292,-160.0,0.00021872,2]
[385281104,1757737840309,-160.0,0.00021872,2]
[385281106,1757737840322,-160.0,0.00021872,2]
[385281109,1757737840338,-160.0,0.00021872,2]
[385281112,1757737840356,-160.0,0.00021872,2]
[385281115,1757737840376,-847.12775373,0.00021873,2]
[385281117,1757737840389,-300.0,0.00022163,20]
[385281120,1757737840405,-300.0,0.00022163,20]
[385281123,1757737840420,-300.0,0.00022163,20]
[385281125,1757737840435,-300.0,0.00022163,20]
[385281128,1757737840447,-300.0,0.00022163,20]
[385281130,1757737840464,-300.0,0.00022163,20]
[385281133,1757737840478,-300.0,0.00022308,20]
[385281135,1757737840493,-367.56791596,0.00022398,2]
[385281138,1757737840508,-367.56791596,0.00023647,2]
[385281141,1757737840523,-173.517561,0.00023824,2]
[385281143,1757737840537,-170.528,0.00023873,5]
[385281146,1757737840551,-350.0,0.000248,2]
[385281148,1757737840565,-367.56791596,0.00024896,2]
[385281151,1757737840580,-350.0,0.000253,2]
[385281154,1757737840595,-552.13497562,0.00026,2]
[385281156,1757737840610,-367.56791596,0.00026145,4]
[385281158,1757737840624,-409.0,0.00026841,2]
[385281159,1757737840638,-5280.8662475,0.00026842,2]
[385281160,1757737840653,-367.56791596,0.00027394,7]
[385281161,1757737840667,-163.203261,0.00027397,2]
[385281162,1757737840684,-231.13751679,0.00027608,2]
[385281163,1757737840699,-4715.25674851,0.00028,14]
[385281175,1757737846102,-531.13137412,0.00021873,2]
[385281176,1757737846112,-500.4872026,0.00028,14]
[385281177,1757737846123,-2720.56194796,0.00028,14]
[385281178,1757737846553,-7322.35410093,0.00028,14]
[385281179,1757737846563,-167.9618429,0.00028155,2]
[385281180,1757737846572,-1004.1942973,0.00028155,2]
[385281181,1757737846581,-367.56791596,0.00028643,10]
[385281182,1757737846591,-518.31,0.00028959,2]
[385281183,1757737846600,-13749.0,0.0002897,30]
[385281184,1757737846609,-500.0,0.0002897,5]
[385281185,1757737846618,-557.72838872,0.00028979,2]
[385281186,1757737846627,-557.7283887,0.00028988,2]
[385281187,1757737846637,-500.0,0.00028989,2]
[385281188,1757737846645,-500.0,0.00028989,2]
[385281189,1757737846654,-500.0,0.00028989,2]
[385281190,1757737846664,-500.0,0.00028989,2]
[385281191,1757737846673,-301.52514647,0.00028989,2]
[385281192,1757737846682,-500.0,0.00028989,2]
[385281193,1757737846695,-500.0,0.00028989,2]
[385281194,1757737846705,-390.30428828,0.00028989,2]
[385281195,1757737846715,-500.0,0.00028989,2]
[385281196,1757737846724,-590.32593038,0.00028989,2]
[385281197,1757737846733,-560.90404659,0.00028989,2]
[385281198,1757737846743,-500.0,0.00028989,2]
[385281199,1757737846752,-500.0,0.00028989,2]
[385281200,1757737846762,-500.0,0.00028989,2]
[385281201,1757737846771,-271.27094263,0.00028989,2]
[385281202,1757737846780,-500.0,0.00028989,2]
[385281203,1757737846789,-500.0,0.00028989,2]
[385281204,1757737846799,-494.5895951,0.00028989,2]
[385281205,1757737846808,-500.0,0.00028989,2]
[385281206,1757737846817,-500.0,0.00028989,2]
[385281207,1757737846826,-500.0,0.00028989,2]
[385281208,1757737846835,-500.0,0.00028989,2]
[385281209,1757737846845,-500.0,0.00028989,2]
[385281210,1757737846855,-500.0,0.00028989,2]
[385281211,1757737846865,-500.0,0.00028989,2]
[385281212,1757737846874,-500.0,0.00028989,2]
[385281213,1757737846883,-333.08298495,0.00028989,2]
[385281214,1757737846892,-500.0,0.00028989,2]
[385281215,1757737846901,-500.0,0.00028989,2]
[385281216,1757737846910,-500.0,0.00028989,2]
[385281217,1757737846919,-500.0,0.00028989,2]
[385281218,1757737846928,-500.0,0.00028989,2]
[385281219,1757737846937,-500.0,0.00028989,2]
[385281220,1757737846946,-500.0,0.00028989,2]
[385281221,1757737846955,-500.0,0.00028989,2]
[385281222,1757737846965,-500.0,0.00028989,2]
[385281223,1757737846975,-500.0,0.00028989,2]
[385281224,1757737846984,-500.0,0.00028989,2]
[385281225,1757737846994,-500.0,0.00028989,2]
[385281226,1757737847003,-500.0,0.00028989,2]
[385281227,1757737847012,-500.0,0.00028989,2]
[385281228,1757737847021,-499.99999999,0.00028989,2]
[385281229,1757737847030,-500.0,0.00028989,2]
[385281230,1757737847040,-500.0,0.00028989,2]
[385281231,1757737847049,-229.69329774,0.00028989,2]
[385281232,1757737847058,-500.0,0.00028989,2]
[385281233,1757737847068,-500.0,0.00028989,2]
[385281234,1757737847076,-500.0,0.00028989,2]
[385281235,1757737847086,-423.7343155,0.00028989,2]
[385281236,1757737847095,-500.0,0.00028989,2]
[385281237,1757737847104,-325.95039399,0.00028989,2]
[385281238,1757737847114,-500.0,0.00028989,2]
[385281239,1757737847123,-500.0,0.00028989,2]
[385281240,1757737847132,-500.0,0.00028989,2]
[385281241,1757737847141,-500.0,0.00028989,2]
[385281242,1757737847151,-417.56878639,0.00028989,2]
[385281243,1757737847160,-500.0,0.00028989,2]
[385281244,1757737847169,-381.82210394,0.00028989,2]
[385281245,1757737847178,-187.0,0.00028989,2]
[385281246,1757737847187,-500.0,0.00028989,2]
[385281247,1757737847196,-377.0,0.00028989,2]
[385281248,1757737847206,-78785.24708056,0.0002899,2]
[385281249,1757738009951,154.0,0.00027397,120]
[385281250,1757738409393,435.3,0.000155,2]
[385281304,1757739032396,-5000.0,0.00019504,2]
[385281306,1757739032406,-269.54980525,0.000199,2]
[385281308,1757739032415,-269.54980503,0.00021149,2]
[385281310,1757739032425,-269.54980503,0.00022398,2]
[385281312,1757739032434,-1200.0,0.00023602,2]
[385281314,1757739032443,-217.73838971,0.00023603,2]
[385281316,1757739032454,-847.12775373,0.00023603,2]
[385281318,1757739032465,-233.1568031,0.00023603,2]
[385281320,1757739032474,-531.13137412,0.00023603,2]
[385281322,1757739032483,-300.0,0.00023604,2]
[385281325,1757739032493,-300.0,0.00023604,2]
[385281327,1757739032502,-300.0,0.00023604,2]
[385281329,1757739032511,-300.0,0.00023604,2]
[385281331,1757739032520,-160.0,0.00023605,2]
[385281333,1757739032531,-1200.0,0.0002361,2]
[385281335,1757739032540,-12398.69389677,0.0002361,2]
[385281339,1757739032551,-3950.0,0.0002361,2]
[385281342,1757739032562,-941.88266733,0.0002361,2]
[385281345,1757739032572,-1816.53079738,0.0002361,2]
[385281492,1757739038295,-3071.12129889,0.0002361,2]
[385281493,1757739038307,-5952.74410731,0.0002361,2]
[385281494,1757739038317,-269.54980503,0.00023647,2]
[385281495,1757739038327,-170.529,0.00023874,5]
[385281496,1757739038337,-300.0,0.00024084,20]
[385281497,1757739038346,-300.0,0.0002409,20]
[385281498,1757739038356,-300.0,0.00024095,20]
[385281499,1757739038365,-180.6014713,0.000241,20]
[385281500,1757739038388,-119.3985287,0.000241,20]
[385281501,1757739038397,-300.0,0.00024105,20]
[385281502,1757739038407,-300.0,0.00024108,20]
[385281503,1757739038417,-300.0,0.00024114,20]
[385281504,1757739038428,-300.0,0.00024119,20]
[385281505,1757739038438,-269.54980503,0.00024896,2]
[385281506,1757739038447,-269.54980503,0.00026145,4]
[385281507,1757739038464,-1000.0,0.00026849,2]
[385281508,1757739038475,-409.0,0.00027068,2]
[385281509,1757739038484,-269.54980503,0.00027394,7]
[385281510,1757739038494,-163.203261,0.00027397,2]
[385281511,1757739038505,-644.18839579,0.00027612,2]
[385281512,1757739038516,-831.09228641,0.00027612,2]
[385281513,1757739038529,-433.89074549,0.00027612,2]
[385281514,1757739038547,-121.12524431,0.00027612,2]
[385281515,1757739038556,-1000.0,0.00027671,2]
[385281516,1757739038565,-168.0,0.00028488,2]
[385281517,1757739038574,-405.84722929,0.00028493,2]
[385281518,1757739038584,-269.54980503,0.00028643,10]
[385281519,1757739038593,-336.60531693,0.00028765,120]
[385281520,1757739038603,-168.0,0.00028852,2]
[385281521,1757739038612,-1107.21941609,0.00028861,2]
[385281522,1757739038624,-665.78058391,0.00028861,2]
[385281523,1757739038633,-334.63703322,0.0002888,2]
[385281524,1757739038642,-334.63703322,0.00028925,2]
[385281525,1757739038651,-334.63703322,0.0002897,2]
[385281526,1757739038661,-2603.39016439,0.0002897,20]
[385281533,1757739043563,-432.08454378,0.0002897,20]
[385281534,1757739043575,-3825.31050581,0.0002897,20]
[385281541,1757739047066,-3139.21478602,0.0002897,20]
[385281542,1757739047075,-10000.0,0.0002897,10]
[385281543,1757739047084,-200.0,0.0002897,14]
[385281544,1757739047094,-160.0,0.0002897,10]
[385281545,1757739047103,-531.13137412,0.0002897,10]
[385281546,1757739047112,-500.0,0.00028979,2]
[385281547,1757739047121,-323.5731535,0.00028979,2]
[385281548,1757739047130,-500.0,0.00028979,2]
[385281549,1757739047139,-500.0,0.00028979,2]
[385281550,1757739047148,-152.0082985,0.00028979,2]
[385281551,1757739047158,-151.0,0.0002898,7]
[385281552,1757739047167,-151.0,0.0002898,7]
[385281553,1757739047175,-151.0,0.0002898,7]
[385281554,1757739047185,-151.0,0.0002898,7]
[385281555,1757739047194,-151.0,0.0002898,7]
[385281556,1757739047203,-151.0,0.0002898,7]
[385281557,1757739047212,-151.0,0.0002898,7]
[385281558,1757739047222,-151.0,0.0002898,7]
[385281559,1757739047231,-192.159338,0.0002898,7]
[385281560,1757739047240,-151.0,0.0002898,7]
[385281561,1757739047249,-192.159338,0.0002898,7]
[385281562,1757739047259,-192.159338,0.0002898,7]
[385281563,1757739047268,-192.159338,0.0002898,7]
[385281564,1757739047277,-151.0,0.0002898,7]
[385281565,1757739047286,-151.0,0.0002898,7]
[385281566,1757739047296,-231.42203,0.0002898,7]
[385281567,1757739047305,-151.0,0.0002898,7]
[385281568,1757739047315,-151.0,0.0002898,7]
[385281569,1757739047324,-137198.140285,0.0002898,2]
[385281570,1757739047333,-4788.16268352,0.0002898,2]
[385281571,1757739047342,-500.0,0.00028989,2]
[385281572,1757739047351,-157.0,0.00028989,2]
[385281573,1757739047360,-157.0,0.00028989,2]
[385281574,1757739047368,-500.0,0.00028989,2]
[385281575,1757739047378,-215.66567314,0.00028989,2]
[385281576,1757739047387,-157.0,0.00028989,2]
[385281577,1757739047398,-157.0,0.00028989,2]
[385281578,1757739047408,-157.0,0.00028989,2]
[385281579,1757739047418,-328.0,0.0002899,7]
[385281580,1757739047428,-330.88574996,0.0002899,7]
[385281581,1757739047438,-151.0,0.0002899,7]
[385281582,1757739047448,-151.0,0.0002899,7]
[385281583,1757739047462,-151.0,0.0002899,7]
[385281584,1757739047471,-152.262886,0.0002899,7]
[385281585,1757739047480,-151.0,0.0002899,7]
[385281586,1757739047489,-151.93754,0.0002899,7]
[385281587,1757739047499,-222.49618805,0.0002899,7]
[385281588,1757739047508,-500.0,0.0002899,7]
[385281589,1757739047605,-151.0,0.0002899,7]
[385281590,1757739047614,-151.0,0.0002899,7]
[385281591,1757739047626,-151.0,0.0002899,7]
[385281592,1757739047635,-151.0,0.0002899,7]
[385281593,1757739047644,-166.59948,0.0002899,7]
[385281594,1757739047654,-151.0,0.0002899,7]
[385281595,1757739047663,-151.907839,0.0002899,7]
[385281596,1757739047672,-151.0,0.0002899,7]
[385281597,1757739047682,-151.0,0.0002899,7]
[385281598,1757739047691,-152.980436,0.0002899,7]
[385281599,1757739047700,-174.589064,0.0002899,7]
[385281600,1757739047710,-170.835855,0.0002899,7]
[385281601,1757739047719,-192.159338,0.0002899,7]
[385281602,1757739047728,-151.0,0.0002899,7]
[385281603,1757739047739,-192.159338,0.0002899,7]
[385281604,1757739047750,-192.159338,0.0002899,7]
[385281605,1757739047759,-192.159338,0.0002899,7]
[385281606,1757739047769,-151.0,0.0002899,7]
[385281607,1757739047778,-18650.11975079,0.0002899,2]
[385281608,1757739047787,-151.0,0.0002899,7]